[Event "14th Chennai GM Open 2023"]
[Site "Chennai"]
[Date "2024.01.02"]
[Round "4.13"]
[White "Anilkumar, O.T."]
[Black "Srihari L R"]
[Result "0-1"]
[ECO "D00"]
[WhiteElo "1877"]
[BlackElo "2467"]
[Annotator "TA"]
[PlyCount "160"]
[EventDate "2023.12.31"]
[EventType "swiss"]
[EventCountry "IND"]
[SourceTitle "playchess.com"]
[Source "ChessBase"]
[SourceQuality "1"]
[TimeControl "5400+30"]

{[%evp 9,160,-15,14,16,35,40,40,-14,-14,-28,-13,-13,-17,-25,-8,-8,-17,-13,-10,-15,-9,-39,-17,-30,-30,-47,-12,-66,-45,-73,-96,-77,-53,-48,-58,-77,-63,-48,-57,-54,-55,-87,-41,-57,-52,-54,-56,-52,-54,-50,-56,-52,-55,-58,-56,-57,-64,-44,-50,-47,-45,-41,-23,-32,0,0,0,-16,0,0,0,0,0,0,0,0,0,0,0,0,0,0,0,0,0,0,0,0,0,0,0,0,0,0,0,0,0,0,0,0,0,-17,0,-17,0,0,0,0,0,0,0,0,0,0,0,0,0,0,0,0,0,0,0,0,0,0,0,0,0,0,0,0,0,0,0,-27,0,0,-12,0,0,0,0,0,0,0,0,0,0,0,0,0,0]} 1. d4 {[%emt 0:00:01]} Nf6 {[%emt 0:00:56]} 2. Bf4 {[%emt 0:00:04]} d5 {[%emt 0:00:10]} 3. e3 {[%emt 0:00:28]} c5 {[%emt 0:00:27]} 4. c3 {[%emt 0:00:08]} Nc6 {[%emt 0:00:04]} 5. Nd2 {[%emt 0:00:08]} cxd4 {[%emt 0:05:17]} (5... Bf5 {feels hotter.} 6. Ngf3 Qb6 7. dxc5 Qxb2 8. Nd4 e5) 6. exd4 {[%emt 0:00:08] D00: 1 d4 d5: Unusual lines.} g6 {[%emt 0:00:10]} 7. Ngf3 {[%emt 0:00:13]} Nh5 {[%emt 0:01:37]} 8. Bg3 {[%emt 0:04:35]} (8. Be3 $14) 8... Bg7 {[%emt 0:02:42]} 9. Be2 {[%emt 0:03:00]} O-O {[%emt 0:00:50]} 10. O-O {[%emt 0:05:44]} Nxg3 {[%emt 0:07:25]} 11. hxg3 {[%emt 0:00:03] [#]} h5 $146 {[%emt 0:01:19]} ({Predecessor:} 11... f6 12. c4 Be6 13. Re1 Qd7 14. Bf1 Bf7 15. Qb3 Rad8 16. Rad1 Rfe8 17. cxd5 Bxd5 {1-0 Esipenko,A (2593)-Blagojevic,D (2497) EU-ch rapid Skopje 2018 (12)}) 12. Re1 {[%emt 0:01:32]} Bf6 {[%emt 0:00:34]} 13. Bd3 {[%emt 0:00:07]} Bg4 {[%emt 0:00:12]} 14. Qb3 {[%emt 0:00:19]} Qd6 {[%emt 0:00:53]} 15. Re3 {[%emt 0:05:11]} Bg7 {[%emt 0:10:26]} 16. Rae1 {[%emt 0:13:58]} Bh6 {[%emt 0:00:49]} 17. R3e2 {[%emt 0:00:01]} Rab8 {[%emt 0:09:53]} 18. a4 {[%emt 0:01:15]} (18. Nf1 $11) 18... h4 {[%emt 0:12:10]} 19. Nf1 {[%emt 0:00:41]} hxg3 {[%emt 0:01:46]} 20. fxg3 {[%emt 0:00:11]} Bg7 {[%emt 0:02:19][%cal Oe7e5]} (20... Kg7 {is more complex.} 21. Rf2 Rh8 22. Ne5 Nxe5 23. dxe5 Qc5) 21. N1h2 {[%emt 0:08:42]} Bd7 {[%emt 0:02:32]} ({Resist} 21... Qxg3 22. Nxg4 (22. Qxd5 Bh5 $11) 22... Qxg4 23. Qxd5 $14) 22. g4 {[%emt 0:02:16]} Rfe8 {[%emt 0:02:04]} 23. Ne5 $1 {[%emt 0:05:18]} Nxe5 {[%emt 0:03:26]} 24. dxe5 {[%emt 0:00:17]} Qc5+ {[%emt 0:01:51]} 25. Kf1 {[%emt 0:12:39]} Be6 {[%emt 0:09:10]} ({Black should play} 25... a6 $17 26. g5 Rec8) 26. Qb5 {[%emt 0:00:34]} b6 {[%emt 0:00:47]} (26... Qxb5 {simplifies} 27. axb5 Red8 28. g5 d4) 27. g5 {[%emt 0:00:50] Inhibits Bh6.} d4 {[%emt 0:03:30]} 28. cxd4 {[%emt 0:04:51]} Qxd4 {[%emt 0:00:23]} 29. Nf3 {[%emt 0:00:03]} Qd5 {[%emt 0:01:33]} 30. Qxd5 {[%emt 0:04:59]} Bxd5 {[%emt 0:00:07]} 31. Kf2 {[%emt 0:01:45]} Red8 {[%emt 0:03:40]} 32. Ba6 {[%emt 0:02:06]} e6 {[%emt 0:06:13]} 33. Rc1 {[%emt 0:02:57]} Bf8 {[%emt 0:02:37]} 34. Rc7 {[%emt 0:00:13]} Bc5+ {[%emt 0:00:11]} 35. Kg3 {[%emt 0:00:32]} Re8 {[%emt 0:01:53]} 36. Rc2 {[%emt 0:11:49]} Bb3 {[%emt 0:00:11] This pair of bishops is nice.} 37. Rc3 {[%emt 0:00:34]} Bd5 {[%emt 0:05:02]} 38. Kf4 {[%emt 0:01:07]} Kf8 {[%emt 0:01:13]} 39. Rxa7 {[%emt 0:01:01]} Ra8 {[%emt 0:00:11]} 40. Rxa8 {[%emt 0:00:11]} Rxa8 {[%emt 0:00:02]} 41. Bb5 {[%emt 0:00:03]} Kg7 {[%emt 0:00:59]} 42. Nh2 {[%emt 0:04:42]} Bb4 {[%emt 0:00:22]} 43. Rd3 {[%emt 0:00:25]} Rc8 {[%emt 0:00:11]} 44. Ng4 {[%emt 0:00:16]} Rc2 {[%emt 0:00:34]} 45. Nf6 $1 {[%emt 0:07:03] [#] Black must now prevent Rh3.} Rf2+ {[%emt 0:00:27]} 46. Kg3 {[%emt 0:00:00]} Rxg2+ {[%emt 0:00:15]} 47. Kh3 {[%emt 0:00:00]} Rxg5 {[%emt 0:01:31]} 48. Nxd5 {[%emt 0:00:00]} exd5 {[%emt 0:00:07]} 49. Rxd5 $11 {[%emt 0:00:00][%mdl 4096] Endgame KRB-KRB} Be1 {[%emt 0:01:20]} 50. Bc4 {[%emt 0:00:00]} Rg3+ {[%emt 0:01:16]} 51. Kh2 {[%emt 0:00:00]} Re3 {[%emt 0:00:58]} 52. Rd7 {[%emt 0:00:00]} Bg3+ {[%emt 0:00:08]} 53. Kg2 {[%emt 0:00:00] Hoping for e6.} Bxe5 {[%emt 0:00:06]} 54. Rxf7+ {[%emt 0:00:00]} Kh6 {[%emt 0:00:05]} 55. Rf3 {[%emt 0:00:00]} Re1 {[%emt 0:00:50]} 56. Rf1 {[%emt 0:00:00]} Re4 {[%emt 0:00:31]} 57. b3 {[%emt 0:00:00]} Bd4 {[%emt 0:01:32]} 58. Kf3 {[%emt 0:00:07]} Re3+ {[%emt 0:00:09]} 59. Kf4 {[%emt 0:00:36]} Re7 {[%emt 0:01:28]} 60. Kg4 {[%emt 0:00:21]} Kg7 {[%emt 0:00:24]} 61. Rf3 {[%emt 0:01:23]} Bc5 {[%emt 0:00:20]} 62. Bd5 {[%emt 0:00:43]} Re1 {[%emt 0:00:20]} 63. Rf7+ {[%emt 0:00:43]} Kh6 {[%emt 0:00:02]} 64. Rf3 {[%emt 0:00:06]} Rg1+ {[%emt 0:00:18]} 65. Rg3 {[%emt 0:01:07]} Rd1 {[%emt 0:00:06]} 66. Be4 {[%emt 0:00:22]} Rd4 {[%emt 0:01:02]} 67. Kf3 {[%emt 0:00:34]} g5 {[%emt 0:00:12]} 68. Rg2 {[%emt 0:00:46]} Rb4 {[%emt 0:00:27]} 69. Bd5 {[%emt 0:02:58] Bc4 is the strong threat.} Rf4+ {[%emt 0:00:06]} 70. Ke2 $1 {[%emt 0:00:18]} g4 {[%emt 0:00:06]} 71. Bc6 {[%emt 0:01:18]} Kg5 {[%emt 0:00:13]} 72. Kd3 {[%emt 0:01:26]} (72. Bd7 $5) 72... Kh4 {[%emt 0:02:09]} 73. Re2 {[%emt 0:00:10] The position is equal.} Rd4+ {[%emt 0:00:40]} 74. Kc3 {[%emt 0:00:08]} Rd6 {[%emt 0:00:29]} 75. Bg2 {[%emt 0:00:22]} Kg3 {[%emt 0:00:22]} 76. b4 {[%emt 0:00:34]} Bf2 {[%emt 0:00:01]} 77. Bb7 {[%emt 0:00:19]} Rd7 {[%emt 0:00:29]} 78. Be4 {[%emt 0:01:14]} Rd4 {[%emt 0:01:25]} 79. Ba8 {[%emt 0:00:43][%cal Oe2f2] [#] Threatens to win with Rxf2!} Rf4 {[%emt 0:00:10]} 80. Be4 {[%emt 0:00:22]} Kh3 {[%emt 0:01:04][%mdl 32768] Weighted Error Value: White=0.08 (flawless) /Black=0.07 (flawless) . Sensor Board Error (Ke4/e5)?} 0-1

[Event "14th Chennai GM Open 2023"]
[Site "Chennai"]
[Date "2024.01.02"]
[Round "4.14"]
[White "Podolchenko, Evgeniy"]
[Black "Mummana Venkata Ruthvik"]
[Result "1/2-1/2"]
[ECO "E71"]
[WhiteElo "2376"]
[BlackElo "1841"]
[Annotator "RC"]
[PlyCount "89"]
[EventDate "2023.12.31"]
[EventType "swiss"]
[EventCountry "IND"]
[SourceTitle "playchess.com"]
[Source "ChessBase"]
[SourceQuality "1"]
[TimeControl "5400+30"]

1. d4 {[%emt 0:00:04]} Nf6 {[%emt 0:03:41]} 2. c4 {[%emt 0:00:07]} g6 {[%emt 0:00:50]} 3. Nc3 {[%emt 0:00:03]} Bg7 {[%emt 0:00:22]} 4. e4 {[%emt 0:00:09]} d6 {[%emt 0:00:24]} 5. h3 {[%emt 0:00:07]} O-O {[%emt 0:00:57]} 6. Be3 {[%emt 0:00:05]} e5 {[%emt 0:02:05]} 7. d5 {[%emt 0:00:03]} a5 {[%emt 0:00:13]} 8. g4 {[%emt 0:00:10]} Ne8 {[%emt 0:10:15]} 9. Nge2 {[%emt 0:03:17]} f5 {[%emt 0:13:47]} 10. gxf5 {[%emt 0:00:07]} gxf5 {[%emt 0:00:01]} 11. exf5 {[%emt 0:00:09]} Bxf5 {[%emt 0:01:53]} 12. Ng3 {[%emt 0:00:47]} Bd7 {[%emt 0:08:32]} 13. h4 {[%emt 0:08:37]} Nf6 {[%emt 0:08:21]} 14. Be2 {[%emt 0:02:27]} Qc8 {[%emt 0:06:05]} 15. Rg1 {[%emt 0:01:17]} Kh8 {[%emt 0:01:53]} 16. Qd2 {[%emt 0:09:44]} Na6 {[%emt 0:06:18]} 17. Nce4 {[%emt 0:12:45]} Nxe4 {[%emt 0:13:08]} 18. Nxe4 {[%emt 0:00:03]} Bf5 {[%emt 0:01:36]} 19. Bd3 {[%emt 0:04:30]} Qd7 {[%emt 0:04:21]} 20. a3 {[%emt 0:18:28]} Bxe4 {[%emt 0:03:59]} 21. Bxe4 {[%emt 0:00:03]} Nc5 {[%emt 0:00:17]} 22. Qc2 {[%emt 0:02:48]} Nxe4 {[%emt 0:03:18]} 23. Qxe4 {[%emt 0:00:09]} Qf5 {[%emt 0:00:37]} 24. Rg4 {[%emt 0:03:02]} Qxe4 {[%emt 0:01:39]} 25. Rxe4 {[%emt 0:02:42]} h5 {[%emt 0:01:01]} 26. Ke2 {[%emt 0:01:30]} Kh7 {[%emt 0:00:36]} 27. c5 {[%emt 0:03:36]} dxc5 {[%emt 0:01:13]} 28. Rg1 {[%emt 0:01:32]} Bf6 {[%emt 0:01:26]} 29. Bxc5 {[%emt 0:00:26]} Rfd8 {[%emt 0:00:50]} 30. Rd1 {[%emt 0:00:26]} Kg6 {[%emt 0:01:39]} 31. f4 {[%emt 0:02:30]} Kf5 {[%emt 0:01:12]} 32. Kf3 {[%emt 0:06:16]} Rg8 {[%emt 0:00:42]} 33. Rde1 {[%emt 0:04:48]} Rae8 {[%emt 0:02:04]} 34. Bd4 {[%emt 0:01:48]} Rg4 {[%emt 0:00:28]} 35. Bxe5 {[%emt 0:00:36]} Bxh4 {[%emt 0:00:17]} 36. R1e3 {[%emt 0:01:17]} Rg3+ {[%emt 0:01:08]} 37. Ke2 {[%emt 0:00:02]} Rxe3+ {[%emt 0:00:05]} 38. Rxe3 {[%emt 0:00:10]} Bd8 {[%emt 0:01:37]} 39. Kf3 {[%emt 0:02:36]} h4 {[%emt 0:00:20]} 40. Rc3 {[%emt 0:00:18]} Re7 {[%emt 0:00:25]} 41. d6 {[%emt 0:03:59]} cxd6 {[%emt 0:00:18]} 42. Bxd6 {[%emt 0:00:01]} Rh7 {[%emt 0:00:19]} 43. Rc5+ {[%emt 0:00:12]} Ke6 {[%emt 0:00:07]} 44. Bb8 {[%emt 0:00:20]} h3 {[%emt 0:00:37]} 45. Ke4 {[%emt 0:08:54]} 1/2-1/2

[Event "14th Chennai GM Open 2023"]
[Site "Chennai"]
[Date "2024.01.03"]
[Round "5.2"]
[White "Glek, Igor"]
[Black "Nguyen, Duc Hoa"]
[Result "0-1"]
[ECO "B51"]
[WhiteElo "2429"]
[BlackElo "2322"]
[Annotator "RC"]
[PlyCount "128"]
[EventDate "2023.12.31"]
[EventType "swiss"]
[EventCountry "IND"]
[SourceTitle "playchess.com"]
[Source "ChessBase"]
[SourceQuality "1"]
[TimeControl "5400+30"]

1. e4 {[%emt 0:02:24]} c5 {[%emt 0:00:07]} 2. Nf3 {[%emt 0:01:55]} d6 {[%emt 0:00:08]} 3. Bb5+ {[%emt 0:02:03]} Nc6 {[%emt 0:02:02]} 4. O-O {[%emt 0:00:06]} Bd7 {[%emt 0:00:34]} 5. Re1 {[%emt 0:00:07]} a6 {[%emt 0:02:14]} 6. Bxc6 {[%emt 0:00:38]} Bxc6 {[%emt 0:00:58]} 7. d4 {[%emt 0:00:05]} cxd4 {[%emt 0:00:19]} 8. Nxd4 {[%emt 0:00:01]} Rc8 {[%emt 0:03:53]} 9. c4 {[%emt 0:12:08]} e6 {[%emt 0:01:55]} 10. Nc3 {[%emt 0:02:54]} Be7 {[%emt 0:02:34]} 11. b3 {[%emt 0:01:00]} Nf6 {[%emt 0:00:53]} 12. Bb2 {[%emt 0:00:43]} O-O {[%emt 0:00:48]} 13. Qe2 {[%emt 0:05:12]} Qa5 {[%emt 0:03:45]} 14. a4 {[%emt 0:05:21]} Rfe8 {[%emt 0:06:42]} 15. Rad1 {[%emt 0:01:31]} Nd7 {[%emt 0:03:11]} 16. Rd3 {[%emt 0:05:54]} Bf6 {[%emt 0:01:14]} 17. Red1 {[%emt 0:07:09]} d5 {[%emt 0:13:17]} 18. Qd2 {[%emt 0:20:52]} Bxd4 {[%emt 0:12:02]} 19. Rxd4 {[%emt 0:00:04]} dxc4 {[%emt 0:04:56]} 20. Rxc4 {[%emt 0:03:16]} Ne5 {[%emt 0:00:41]} 21. Rd4 {[%emt 0:00:29]} Ng6 {[%emt 0:00:34]} 22. h3 {[%emt 0:12:28]} h5 {[%emt 0:06:47]} 23. b4 {[%emt 0:02:41]} Qe5 {[%emt 0:00:08]} 24. Qe3 {[%emt 0:04:02]} h4 {[%emt 0:00:35]} 25. R4d2 {[%emt 0:01:27]} Qh5 {[%emt 0:00:45]} 26. Qe2 {[%emt 0:03:55]} Qxe2 {[%emt 0:01:58]} 27. Rxe2 {[%emt 0:00:01]} b5 {[%emt 0:00:17]} 28. axb5 {[%emt 0:00:06]} Bxb5 {[%emt 0:00:41]} 29. Nxb5 {[%emt 0:05:47]} axb5 {[%emt 0:00:05]} 30. Rc1 {[%emt 0:00:31]} Rxc1+ {[%emt 0:01:13]} 31. Bxc1 {[%emt 0:01:10]} Ra8 {[%emt 0:01:53]} 32. Rc2 {[%emt 0:00:00]} Ne5 {[%emt 0:03:52]} 33. Bg5 {[%emt 0:00:17]} Ra4 {[%emt 0:00:51]} 34. Rc5 {[%emt 0:00:36]} Nd3 {[%emt 0:01:24]} 35. Rxb5 {[%emt 0:01:07]} Ra1+ {[%emt 0:00:34]} 36. Kh2 {[%emt 0:00:00]} Nxf2 {[%emt 0:00:05]} 37. Bxh4 {[%emt 0:00:00]} Rh1+ {[%emt 0:00:14]} 38. Kg3 {[%emt 0:00:00]} Nxe4+ {[%emt 0:00:05]} 39. Kf3 {[%emt 0:00:45]} f5 {[%emt 0:00:24]} 40. Bd8 {[%emt 0:01:13]} Rf1+ {[%emt 0:01:19]} 41. Ke3 {[%emt 0:00:04]} Re1+ {[%emt 0:00:25]} 42. Kf4 {[%emt 0:00:14]} g5+ {[%emt 0:00:39]} 43. Bxg5 {[%emt 0:00:48]} Rf1+ {[%emt 0:00:04]} 44. Ke5 {[%emt 0:00:06]} Nxg5 {[%emt 0:00:05]} 45. Kf6 {[%emt 0:00:02]} Ne4+ {[%emt 0:05:53]} 46. Kxe6 {[%emt 0:00:01]} Ng3 {[%emt 0:00:28]} 47. Rd5 {[%emt 0:01:38]} Kg7 {[%emt 0:00:35]} 48. Rd3 {[%emt 0:00:36]} Re1+ {[%emt 0:01:18]} 49. Kd5 {[%emt 0:00:26]} f4 {[%emt 0:04:43]} 50. b5 {[%emt 0:00:38]} Kf6 {[%emt 0:00:32]} 51. b6 {[%emt 0:00:20]} Rb1 {[%emt 0:01:02]} 52. Kc6 {[%emt 0:00:07]} Ne4 {[%emt 0:00:54]} 53. Rd4 {[%emt 0:01:26]} Ke5 {[%emt 0:00:28]} 54. Rd5+ {[%emt 0:00:03]} Ke6 {[%emt 0:00:04]} 55. Rh5 {[%emt 0:00:58]} Rc1+ {[%emt 0:00:12]} 56. Kb7 {[%emt 0:00:22]} Rc2 {[%emt 0:01:38]} 57. Rh4 {[%emt 0:00:32]} Nc5+ {[%emt 0:07:13]} 58. Kb8 {[%emt 0:00:04]} Nd7+ {[%emt 0:00:12]} 59. Kb7 {[%emt 0:00:11]} Ke5 {[%emt 0:00:45]} 60. Rg4 {[%emt 0:00:34]} Rb2 {[%emt 0:00:16]} 61. Rg5+ {[%emt 0:01:20]} Ke4 {[%emt 0:00:56]} 62. Rg6 {[%emt 0:00:11]} Nxb6 {[%emt 0:01:26]} 63. Kc6 {[%emt 0:00:50]} Nc4 {[%emt 0:00:20]} 64. Kc5 {[%emt 0:00:20]} Rc2 {[%emt 0:06:25]} 0-1

[Event "14th Chennai GM Open 2023"]
[Site "Chennai"]
[Date "2024.01.03"]
[Round "5.3"]
[White "Saravana, Krishnan P."]
[Black "Khusenkhojaev, Muhammad"]
[Result "0-1"]
[ECO "A48"]
[WhiteElo "2269"]
[BlackElo "2366"]
[Annotator "RC"]
[PlyCount "141"]
[EventDate "2023.12.31"]
[EventType "swiss"]
[EventCountry "IND"]
[SourceTitle "playchess.com"]
[Source "ChessBase"]
[SourceQuality "1"]
[TimeControl "5400+30"]

1. d4 {[%emt 0:00:08]} Nf6 {[%emt 0:00:15]} 2. Nf3 {[%emt 0:00:45]} g6 {[%emt 0:01:29]} 3. Bf4 {[%emt 0:01:40]} Bg7 {[%emt 0:00:13]} 4. c3 {[%emt 0:01:03]} b6 {[%emt 1:30:33]} 5. Nbd2 {[%emt 0:05:14]} Bb7 {[%emt 0:00:00]} 6. Qc2 {[%emt 0:03:41]} d5 {[%emt 0:00:00]} 7. e3 {[%emt 0:02:40]} c5 {[%emt 0:00:00]} 8. Bb5+ {[%emt 0:04:34]} Nbd7 {[%emt 0:00:00]} 9. Ne5 {[%emt 0:01:40]} a6 {[%emt 0:00:00]} 10. Be2 {[%emt 0:01:13]} O-O {[%emt 0:00:00]} 11. h4 {[%emt 0:05:52]} h5 {[%emt 0:00:00]} 12. f3 {[%emt 0:04:46]} Rc8 {[%emt 0:00:00]} 13. g4 {[%emt 0:08:09]} cxd4 {[%emt 0:00:00]} 14. exd4 {[%emt 0:00:47]} b5 {[%emt 0:00:00]} 15. a3 {[%emt 0:06:53]} hxg4 {[%emt 0:00:00]} 16. fxg4 {[%emt 0:05:48]} Ne4 {[%emt 0:00:00]} 17. Ndf3 {[%emt 0:09:44]} Nxe5 {[%emt 0:00:00]} 18. Nxe5 {[%emt 0:00:21]} Bxe5 {[%emt 0:00:00]} 19. Bxe5 {[%emt 0:01:34]} f6 {[%emt 0:00:00]} 20. Bf4 {[%emt 0:03:04]} Qb6 {[%emt 0:00:00]} 21. Qd3 {[%emt 0:03:26]} Bc6 {[%emt 0:00:00]} 22. O-O {[%emt 0:08:33]} a5 {[%emt 0:00:00]} 23. Qe3 {[%emt 0:06:22]} Rf7 {[%emt 0:00:00]} 24. Bd3 {[%emt 0:03:53]} Qb7 {[%emt 0:00:00]} 25. g5 {[%emt 0:01:54]} Qd7 {[%emt 0:00:00]} 26. Bxe4 {[%emt 0:05:33]} dxe4 {[%emt 0:00:00]} 27. Bg3 {[%emt 0:00:46]} Qh3 {[%emt 0:00:00]} 28. Rf4 {[%emt 0:00:26]} Rcf8 {[%emt 0:00:00]} 29. Raf1 {[%emt 0:00:33]} Bd5 {[%emt 0:00:00]} 30. gxf6 {[%emt 0:01:00]} Rxf6 {[%emt 0:00:00]} 31. Rxf6 {[%emt 0:00:39]} exf6 {[%emt 0:00:00]} 32. Rf2 {[%emt 0:00:33]} Rf7 {[%emt 0:00:00]} 33. Rh2 {[%emt 0:00:15]} Qg4 {[%emt 0:00:00]} 34. Rg2 {[%emt 0:00:13]} Qf3 {[%emt 0:00:00]} 35. Bf2 {[%emt 0:00:35]} Kh7 {[%emt 0:00:00]} 36. Rg3 {[%emt 0:00:52]} Qd1+ {[%emt 0:00:00]} 37. Kh2 {[%emt 0:00:22]} Qh5 {[%emt 0:00:00]} 38. Qf4 {[%emt 0:00:29]} Kg7 {[%emt 0:00:00]} 39. Be3 {[%emt 0:00:40]} Rb7 {[%emt 0:00:00]} 40. Rg2 {[%emt 0:00:36]} Rf7 {[%emt 0:00:00]} 41. Qg4 {[%emt 0:00:26]} Qxg4 {[%emt 0:00:00]} 42. Rxg4 {[%emt 0:00:02]} Rd7 {[%emt 0:00:14]} 43. Rg1 {[%emt 0:00:56]} Kf7 {[%emt 0:00:37]} 44. Kg3 {[%emt 0:00:19]} Rb7 {[%emt 0:01:39]} 45. Bd2 {[%emt 0:00:58]} Rb8 {[%emt 0:00:56]} 46. Rf1 {[%emt 0:00:24]} Ke6 {[%emt 0:00:06]} 47. Ra1 {[%emt 0:00:30]} a4 {[%emt 0:00:30]} 48. Rf1 {[%emt 0:00:26]} Rh8 {[%emt 0:00:46]} 49. Be3 {[%emt 0:00:47]} Rh5 {[%emt 0:00:37]} 50. Kg4 {[%emt 0:00:37]} Bc6 {[%emt 0:00:34]} 51. Rf2 {[%emt 0:00:41]} Bd7 {[%emt 0:00:29]} 52. Kg3 {[%emt 0:00:28]} Ke7 {[%emt 0:01:18]} 53. d5 {[%emt 0:00:33]} Rxd5 {[%emt 0:00:21]} 54. Bd4 {[%emt 0:00:07]} Bf5 {[%emt 0:00:55]} 55. Kf4 {[%emt 0:00:43]} Ke6 {[%emt 0:00:11]} 56. Ke3 {[%emt 0:01:20]} Rd7 {[%emt 0:00:54]} 57. Rd2 {[%emt 0:01:02]} Rh7 {[%emt 0:00:56]} 58. Rh2 {[%emt 0:00:35]} g5 {[%emt 0:01:04]} 59. h5 {[%emt 0:00:18]} Rh6 {[%emt 0:00:12]} 60. Bc5 {[%emt 0:00:47]} Bg6 {[%emt 0:00:52]} 61. Bf8 {[%emt 0:00:44]} Rxh5 {[%emt 0:02:09]} 62. Rxh5 {[%emt 0:00:10]} Bxh5 {[%emt 0:00:05]} 63. Kxe4 {[%emt 0:00:04]} f5+ {[%emt 0:00:10]} 64. Kd4 {[%emt 0:00:49]} Be2 {[%emt 0:00:22]} 65. Bc5 {[%emt 0:00:57]} Bf1 {[%emt 0:00:16]} 66. Bb6 {[%emt 0:00:29]} f4 {[%emt 0:00:17]} 67. Ke4 {[%emt 0:00:41]} Bg2+ {[%emt 0:00:11]} 68. Kd3 {[%emt 0:00:28]} Kf5 {[%emt 0:00:06]} 69. Bd8 {[%emt 0:00:44]} Bf1+ {[%emt 0:00:31]} 70. Kd4 {[%emt 0:00:30]} g4 {[%emt 0:00:06]} 71. b3 {[%emt 0:01:09]} 0-1

[Event "14th Chennai GM Open 2023"]
[Site "Chennai"]
[Date "2024.01.03"]
[Round "5.4"]
[White "Matta, Vinay Kumar"]
[Black "Aronyak Ghosh"]
[Result "1/2-1/2"]
[ECO "B15"]
[WhiteElo "2132"]
[BlackElo "2545"]
[Annotator "TA"]
[PlyCount "102"]
[EventDate "2023.12.31"]
[EventType "swiss"]
[EventCountry "IND"]
[SourceTitle "playchess.com"]
[Source "ChessBase"]
[SourceQuality "1"]
[TimeControl "5400+30"]

{[%evp 15,102,21,28,6,36,18,23,23,20,19,29,23,26,23,24,-12,-11,-10,0,0,10,0,0,0,14,0,0,0,0,0,0,0,0,0,0,0,0,0,0,0,0,0,0,-15,-9,-11,0,0,0,0,0,-8,0,0,0,0,0,0,8,0,0,0,0,0,0,0,0,0,0,0,0,0,0,0,0,0,0,-8,-8,-8,-8,-8,-8,-8,-8,-8,-8,-8,-8]} 1. e4 {[%emt 0:00:04]} c6 {[%emt 0:00:32]} 2. d4 {[%emt 0:00:15]} d5 {[%emt 0:00:06]} 3. Nc3 {[%emt 0:00:20]} dxe4 {[%emt 0:00:58]} 4. Nxe4 {[%emt 0:00:06]} Nf6 {[%emt 0:00:04]} 5. Nxf6+ {[%emt 0:00:21]} exf6 {[%emt 0:00:05]} 6. c3 {[%emt 0:00:51]} Bd6 {[%emt 0:00:34]} 7. Bd3 {[%emt 0:01:18]} O-O {[%emt 0:00:09]} 8. Ne2 {[%emt 0:00:38]} Re8 {[%emt 0:00:06]} 9. Be3 {[%emt 0:01:36] B15: Caro-Kann: 3 Nc3: 3...g6 and 3...dxe4 4 Nxe4 Nf6 5 Nxf6+ exf6.} f5 {[%emt 0:08:40]} 10. Qd2 {[%emt 0:03:10] [#]} Be6 $146 {[%emt 0:01:30]} ({Predecessor:} 10... Qc7 11. O-O-O b5 12. h3 Be6 13. g4 Bxa2 14. gxf5 f6 15. Rhg1 Kh8 16. Nf4 Bxf4 17. Bxf4 {1-0 Van Rootselaar,R (1828)-Ruzaykyn,O Leiden Noteboom Memorial 82nd 2023 (4)}) 11. O-O {[%emt 0:01:33] White has an edge.} Nd7 {[%emt 0:00:30][%cal Bb8d7,Bd7f6,Bf6e4][%mdl 32]} 12. Nf4 {[%emt 0:04:31]} g6 {[%emt 0:01:30]} 13. Nxe6 {[%emt 0:03:12]} Rxe6 {[%emt 0:00:05]} 14. Bc4 {[%emt 0:04:09]} Re8 {[%emt 0:05:31]} 15. Bf4 {[%emt 0:02:57]} Nf6 {[%emt 0:09:10] The position is equal.} 16. Rae1 {[%emt 0:11:20]} Ne4 {[%emt 0:08:18] Against Bg5} 17. Qc1 {[%emt 0:05:56]} Qf6 {[%emt 0:06:00]} 18. Bxd6 {[%emt 0:07:08]} Nxd6 {[%emt 0:02:23]} 19. Bb3 {[%emt 0:00:33]} f4 {[%emt 0:04:30]} 20. Rxe8+ {[%emt 0:01:47]} Rxe8 {[%emt 0:00:04]} 21. Re1 {[%emt 0:00:22]} Rxe1+ {[%emt 0:00:39]} 22. Qxe1 $11 {[%emt 0:00:04][%mdl 4096] Endgame KQB-KQN} Qf5 {[%emt 0:00:21]} 23. h3 {[%emt 0:03:23] [#] Qe7 is the strong threat.} Kf8 {[%emt 0:01:09] Dodges Qe7+} 24. Qe2 {[%emt 0:06:16]} h5 {[%emt 0:01:23]} 25. Bc2 {[%emt 0:16:05]} Qd5 {[%emt 0:10:22]} 26. b3 {[%emt 0:07:31]} Qa5 {[%emt 0:06:10][%csl LRa2,LRc3]} 27. Qd2 {[%emt 0:02:06]} Nb5 {[%emt 0:04:34]} 28. Qxf4 {[%emt 0:08:27]} Nxc3 {[%emt 0:00:08] [#] ...Ne2+ would be deadly.} 29. Kh2 {[%emt 0:05:52]} (29. Bxg6 $2 {too greedy.} Ne2+ 30. Kh2 Nxf4 $19) 29... Kg7 {[%emt 0:01:58]} 30. Bd3 {[%emt 0:01:14]} Qd8 {[%emt 0:01:21]} ({Resist} 30... Nxa2 31. Bc4 Qf5 32. Qd2 $14) 31. a3 {[%emt 0:01:34]} h4 {[%emt 0:02:17]} 32. Qe5+ {[%emt 0:00:30]} Qf6 {[%emt 0:00:10]} 33. f4 {[%emt 0:00:17]} Qxe5 {[%emt 0:02:03]} 34. dxe5 {[%emt 0:00:16] KB-KN} a5 {[%emt 0:04:16]} 35. g3 {[%emt 0:00:16]} Nd5 {[%emt 0:02:02]} 36. Kg2 {[%emt 0:00:38]} f6 {[%emt 0:00:58]} 37. exf6+ {[%emt 0:00:59]} Kxf6 {[%emt 0:00:01]} 38. Kf3 {[%emt 0:00:14]} hxg3 {[%emt 0:00:05]} 39. Kxg3 {[%emt 0:00:05]} b5 {[%emt 0:01:32]} 40. Kf3 {[%emt 0:00:15]} Nc3 {[%emt 0:00:13]} 41. Ke3 {[%emt 0:00:38]} c5 {[%emt 0:00:05][%cal Bc6c5,Bc5b4,Bb4b3][%mdl 32]} 42. Kd2 {[%emt 0:00:16]} b4 {[%emt 0:00:29]} 43. axb4 {[%emt 0:00:07]} cxb4 {[%emt 0:00:58]} 44. Ke3 {[%emt 0:00:13]} a4 {[%emt 0:00:32]} 45. bxa4 {[%emt 0:00:10]} Nxa4 {[%emt 0:00:04]} 46. Bc2 {[%emt 0:00:32]} Nc5 {[%emt 0:00:35]} 47. Kd4 {[%emt 0:01:07]} b3 {[%emt 0:00:06]} 48. Bb1 {[%emt 0:00:08]} Ne6+ {[%emt 0:00:06]} 49. Kc3 {[%emt 0:00:09]} Nxf4 {[%emt 0:00:04]} 50. Bxg6 {[%emt 0:00:09]} Kxg6 {[%emt 0:00:04]} 51. Kxb3 {[%emt 0:00:02]} Nxh3 {[%emt 0:00:51] An even fight not without its subleties.   Weighted Error Value: White=0.04 (flawless) /Black=0.03 (flawless)} 1/2-1/2